bitfinex/quotes_ETHUSD_20260209
["timestamp","ask_amount","ask_price","bid_price","bid_amount"]
[1770667106161,0.8892922,2134.1,2133.3,0.0011]
[1770667106362,0.8892922,2134.1,2133.1,0.0011]
[1770667106363,0.05631688,2133.5,2132.8,5.59900886]
[1770667106697,0.05631688,2133.5,2132.9,1.1720634]
[1770667106871,0.05631688,2133.4,2132.8,0.87223839]
[1770667107057,0.05631688,2133.4,2132.9,1.17210499]
[1770667107258,0.05631688,2133.4,2132.8,2.04436802]
[1770667107886,0.05631688,2133.2,2132.8,0.87223839]
[1770667108088,0.05631688,2133.4,2132.8,2.04438079]
[1770667108278,1.22820026,2133.4,2132.8,0.87223839]
[1770667108499,0.05631688,2132.7,2131.6,0.24602375]
[1770667108677,0.05631688,2132.1,2131.6,0.24822375]
[1770667108875,0.30115971,2131.9,2131.5,1.12074192]
[1770667109169,0.30115971,2131.9,2131.6,1.17281361]
[1770667109170,0.24484283,2131.9,2131.6,1.17281361]
[1770667109579,0.24484283,2131.9,2131.4,0.91045675]
[1770667109782,0.24484283,2131.9,2131.6,1.1728154]
[1770667110309,0.24484283,2131.9,2131.5,1.17284942]
[1770667110877,0.14529298,2131.9,2131.5,1.17284942]
[1770667111083,0.14529298,2131.9,2131.4,2.08335239]
[1770667111591,1.31797056,2131.9,2131.5,0.90935675]
[1770667111791,1.37428744,2131.9,2131.4,0.0011]
[1770667112300,0.05631688,2131.7,2131.4,0.0011]
[1770667112494,1.37430297,2131.9,2131.4,0.0011]
[1770667112696,1.31795748,2131.9,2131.4,0.0011]
[1770667113004,0.14529298,2131.9,2131.4,0.0011]
[1770667113476,0.14529298,2131.9,2131.4,0.91045675]
[1770667114381,0.14529298,2131.9,2131.6,0.0011]
[1770667114887,0.05631688,2131.8,2131.4,0.0011]
[1770667115679,0.05631688,2131.6,2131.4,0.0011]
[1770667116099,0.05631688,2131.6,2131.1,0.0011]
[1770667116300,0.05631688,2131.3,2131.1,0.0011]
[1770667116609,1.17304804,2131.2,2130.5,0.0011]
[1770667116819,0.05631688,2131.3,2130.6,0.0022]
[1770667117308,0.05631688,2131.3,2130.5,0.0011]
[1770667117510,0.05631688,2131.3,2130.6,0.0022]
[1770667117682,0.05631688,2131.1,2130.6,0.0022]
[1770667118418,0.05631688,2131.3,2130.6,0.0022]
[1770667118715,1.22942141,2131.1,2130.6,0.0022]
[1770667119087,0.05631688,2130.9,2130.6,0.0022]
[1770667119284,1.22942141,2131.1,2130.6,0.0022]
[1770667119486,0.05631688,2130.7,2130.5,0.0011]
[1770667119691,0.05631688,2130.0,2129.4,0.90935675]
[1770667119991,0.05631688,2129.7,2129.4,0.90935675]
[1770667120197,0.05631688,2129.9,2129.5,0.0022]
[1770667120629,0.05631688,2130.5,2129.5,0.90935675]
[1770667120791,1.22968211,2130.7,2129.7,0.90935675]
[1770667121418,0.05631688,2130.5,2129.7,0.90935675]
[1770667121616,0.05631688,2130.1,2129.2,0.90935675]
[1770667121830,0.05631688,2130.3,2129.2,0.90935675]
[1770667121998,0.05631688,2130.3,2129.0,4.69682025]
[1770667121999,0.05631688,2130.1,2129.4,0.90935675]
[1770667122530,0.05631688,2129.9,2129.5,0.0022]
[1770667123187,4.75005168,2130.5,2129.4,2.0833911]
[1770667123188,0.05631688,2131.0,2129.6,0.90935675]
[1770667123379,0.05631688,2130.5,2129.6,0.90935675]
[1770667123584,0.05631688,2130.5,2129.4,1.17403435]
[1770667123585,0.05631688,2130.2,2129.7,0.0022]
[1770667123890,0.05631688,2130.2,2129.6,0.0022]
[1770667124087,0.05631688,2129.8,2129.6,0.0022]
[1770667124291,0.05631688,2129.8,2129.2,1.17413858]
[1770667124701,0.05631688,2130.2,2129.3,0.91155675]
[1770667124910,0.05631688,2129.9,2129.3,0.90935675]
[1770667125087,0.05631688,2130.3,2129.4,0.91155675]
[1770667125414,0.05631688,2130.3,2129.4,0.90935675]
[1770667125614,0.05631688,2130.3,2129.5,0.91155675]
[1770667125812,0.05631688,2130.3,2129.5,0.85935675]
[1770667126014,1.22976447,2130.5,2129.5,0.85935675]
[1770667126315,0.05631688,2130.3,2129.7,0.0011]
[1770667126939,0.05631688,2130.5,2129.8,0.91155675]
[1770667127332,0.05631688,2130.1,2129.8,0.0022]
[1770667127540,0.05631688,2130.5,2129.9,0.0022]
[1770667127708,0.05631688,2130.5,2129.7,0.0011]
[1770667127908,0.05631688,2130.5,2129.8,0.0022]
[1770667128145,0.05631688,2130.3,2129.8,0.0022]
[1770667128346,0.05631688,2129.9,2129.7,0.0011]
[1770667128650,0.05631688,2130.1,2129.7,0.0033]
[1770667128943,0.05631688,2130.0,2129.7,0.0033]
[1770667129455,0.05631688,2130.1,2129.7,0.0033]
[1770667129824,0.05631688,2129.8,2128.9,1.17429046]
[1770667130127,0.05631688,2129.6,2129.0,1.17425147]
[1770667130430,0.05631688,2129.6,2128.8,5.68623435]
[1770667130635,0.05631688,2129.6,2128.9,1.17427676]
[1770667130839,1.23029595,2129.6,2128.9,1.17427657]
[1770667132629,1.23029595,2129.6,2129.0,0.0022]
[1770667133225,0.05631688,2129.3,2129.0,0.0022]
[1770667133446,1.23029595,2129.6,2129.0,0.0022]
[1770667133755,0.05631688,2129.4,2129.0,0.0022]
[1770667134051,0.05631688,2129.6,2129.0,0.0022]
[1770667134256,1.23026221,2129.6,2129.0,0.0022]
[1770667134465,1.23017753,2129.8,2129.0,0.99103413]
[1770667134667,0.05631688,2129.8,2129.0,0.99103413]
[1770667134975,0.05631688,2130.3,2129.1,0.98883413]
[1770667135270,0.05631688,2130.3,2129.4,0.98883413]
[1770667135488,0.05631688,2131.0,2129.6,0.98883413]
[1770667135771,0.05751688,2131.4,2129.4,10.44067324]
[1770667135772,0.05631688,2130.9,2129.9,0.98883413]
[1770667135943,0.05631688,2131.2,2130.1,0.98883413]
[1770667136138,0.05631688,2131.0,2130.1,0.98883413]
[1770667136364,0.05631688,2131.2,2130.3,0.98883413]
[1770667136559,1.172993,2131.3,2130.3,0.98883413]
[1770667136775,0.0012,2131.4,2130.4,0.99103413]
[1770667136940,0.0012,2131.4,2130.6,0.98883413]
[1770667137138,0.0012,2131.4,2130.8,0.98883413]
[1770667137558,0.0012,2131.4,2130.8,4.26883413]
[1770667138066,0.05631688,2132.0,2130.9,0.98883413]
[1770667138267,0.05631688,2132.1,2130.9,0.99103413]
[1770667138775,0.05631688,2131.9,2130.9,0.99103413]
[1770667139150,0.05631688,2131.9,2131.0,1.17315814]
[1770667139344,0.05631688,2131.9,2131.1,0.98883413]
[1770667140542,0.05631688,2131.9,2130.7,1.17327608]
[1770667140543,0.05631688,2131.2,2130.7,1.17327608]
[1770667140869,0.04976687,2131.2,2130.9,0.0022]
[1770667141077,0.05631688,2132.0,2131.0,0.98883413]
[1770667141247,0.05631688,2131.5,2131.0,0.0022]
[1770667141442,0.05631688,2131.7,2131.0,1.17535674]
[1770667141663,0.05631688,2131.6,2131.1,0.98883413]
[1770667141865,0.05631688,2132.1,2131.0,1.17535674]
[1770667142054,0.05631688,2131.6,2131.1,0.0022]
[1770667142469,0.05631688,2131.6,2130.8,8.96176058]
[1770667142470,0.05631688,2131.6,2130.9,1.17317142]
[1770667142651,0.05631688,2131.4,2131.0,0.0022]
[1770667142976,0.05631688,2131.6,2131.0,1.17535242]
[1770667143145,1.17373867,2132.2,2131.0,0.99103413]
[1770667143146,1.17266288,2131.9,2131.0,0.99103413]
[1770667143350,0.05631688,2131.8,2131.0,0.99103413]
[1770667143868,0.05631688,2131.3,2130.8,1.17325669]
[1770667144175,0.05631688,2131.3,2130.8,1.17326625]
[1770667144370,0.05631688,2131.6,2130.8,1.17326625]
[1770667144546,0.05631688,2131.4,2130.8,1.17326625]
[1770667144748,0.05631688,2131.6,2130.8,1.17326625]
[1770667144975,0.05631688,2131.8,2130.9,0.98883413]
[1770667145174,0.05631688,2131.6,2130.9,0.98883413]
[1770667145358,0.05631688,2131.8,2131.0,2.16199227]
[1770667145972,1.17266288,2131.9,2131.1,0.98883413]
[1770667146296,0.0012,2132.2,2131.3,0.98883413]
[1770667146445,1.17371176,2132.2,2131.3,0.98883413]
[1770667147384,0.0012,2132.2,2131.3,0.98883413]
[1770667147554,0.0012,2132.2,2131.4,1.17293797]
[1770667148171,0.0012,2132.2,2131.1,1.17307751]
[1770667148172,0.05631688,2131.9,2131.1,1.17307751]
[1770667148357,0.05631688,2131.7,2131.3,1.17298977]
[1770667148551,0.05631688,2131.8,2131.1,5.68114714]
[1770667148879,0.05631688,2131.8,2131.3,1.17298793]
[1770667149452,0.05631688,2132.1,2131.2,5.68100547]
[1770667149659,0.05631688,2131.9,2131.2,5.68100547]
[1770667150081,0.05631688,2131.9,2131.2,2.16188217]
[1770667150277,0.05631688,2131.9,2131.1,1.17306561]
[1770667150278,0.05631688,2131.7,2131.1,1.17306561]
[1770667150683,0.05631688,2131.9,2131.1,1.17306561]
[1770667150859,0.05631688,2131.7,2131.1,1.17306561]
[1770667151189,0.0012,2132.2,2131.2,0.98883413]
[1770667151369,1.17371134,2132.2,2131.2,0.98883413]
[1770667151687,1.17371134,2132.2,2131.3,1.172993]
[1770667152074,0.05631688,2132.1,2131.3,1.172993]
[1770667152263,0.0012,2131.9,2131.3,1.172993]
[1770667153098,0.0012,2131.9,2131.4,3.279]
[1770667153454,0.05631688,2131.8,2131.4,3.279]
[1770667153666,0.0012,2131.9,2131.4,4.45192543]
[1770667154874,1.23018505,2131.9,2131.4,4.45192543]
[1770667155195,1.23018697,2131.9,2131.4,4.45192543]
[1770667155561,1.23018614,2131.9,2131.4,4.45192543]
[1770667155765,1.23018614,2131.9,2131.0,0.0011]
[1770667155766,1.03052744,2131.7,2131.0,0.0011]
[1770667156016,0.05631688,2131.4,2130.6,1.17333618]
[1770667156298,0.05631688,2131.7,2130.8,0.98883413]
[1770667156463,0.05631688,2131.5,2130.9,0.0011]
[1770667156661,0.05631688,2131.4,2130.9,0.0011]
[1770667157508,0.05631688,2131.7,2131.0,0.0011]
[1770667157675,0.05631688,2131.5,2130.8,0.98993413]
[1770667157876,1.22922393,2131.5,2130.9,1.17321319]
[1770667158506,1.22922393,2131.5,2131.0,0.0011]
[1770667159782,1.22912894,2131.7,2131.0,0.0011]
[1770667160195,0.05631688,2131.5,2131.0,0.0011]
[1770667161427,0.94000097,2131.4,2129.7,4.68763697]
[1770667161705,0.05631688,2131.4,2130.6,1.17333842]
[1770667161905,1.172993,2131.3,2130.2,1.17359872]
[1770667162715,1.1729727,2131.4,2130.3,3.279]
[1770667162881,1.17292551,2131.5,2130.4,0.96807736]
[1770667163085,0.05631688,2131.4,2130.3,3.279]
[1770667163306,1.0065045,2131.3,2130.3,3.279]
[1770667163515,1.00658406,2131.2,2130.3,3.279]
[1770667163694,0.05631688,2131.4,2130.3,3.279]
[1770667163893,1.00658412,2131.3,2130.3,3.279]
[1770667164105,1.17307305,2131.2,2130.4,1.17348854]
[1770667164423,1.17307305,2131.2,2130.1,0.0011]
[1770667164424,0.99631785,2130.9,2130.1,0.0011]
[1770667164632,1.94848036,2130.8,2130.1,4.69505418]
[1770667164938,1.00847939,2130.7,2130.1,4.69505418]
[1770667165142,1.06479627,2130.7,2130.1,4.69505418]
[1770667165312,1.00847939,2130.6,2130.1,4.69505418]
[1770667165503,1.00847939,2130.6,2130.1,0.0011]
[1770667165705,1.00847939,2130.6,2130.1,4.69505418]
[1770667166036,1.17326207,2130.9,2130.2,4.69433664]
[1770667166217,1.00930712,2130.8,2130.2,4.69433664]
[1770667166418,1.17423885,2131.3,2130.3,5.66203154]
[1770667166610,1.00898935,2131.2,2130.3,5.66203154]
[1770667166928,1.00898935,2131.1,2130.3,5.66203154]
[1770667167132,1.17423885,2131.3,2130.3,5.66203154]
[1770667167335,1.00889812,2131.2,2130.3,5.66203154]
[1770667167506,1.00889812,2131.1,2130.3,5.66203154]
[1770667167706,1.17423885,2131.3,2130.3,5.66203154]
[1770667168027,2.18196897,2131.2,2130.4,1.17348854]
[1770667168227,1.00889794,2131.1,2130.4,1.17348854]
[1770667171034,2.18202874,2131.1,2130.4,1.17348854]
[1770667171346,0.0012,2131.3,2130.6,0.96807736]
[1770667171642,0.0012,2131.3,2130.7,3.279]
[1770667173339,0.0012,2131.3,2130.8,1.17326825]
[1770667173826,0.0012,2131.3,2130.9,4.69395418]
[1770667175342,0.0012,2131.3,2130.1,21.83587399]
[1770667175343,0.05631688,2131.0,2130.1,21.83587399]
[1770667175539,1.00881858,2130.9,2130.1,1.17360964]
[1770667176057,1.00881858,2130.9,2129.9,0.0011]
[1770667176215,1.00881858,2130.9,2130.1,1.1736437]
[1770667176410,1.17308252,2131.2,2130.1,1.1736437]
[1770667176630,1.00874909,2131.1,2130.2,20.66226435]
[1770667176835,1.00874909,2131.0,2130.2,20.66226435]
[1770667177039,1.00874909,2130.9,2130.2,20.66226435]
[1770667177223,1.00874909,2130.8,2130.3,20.66226435]
[1770667177426,1.17328053,2130.8,2130.6,0.0011]
[1770667178642,1.17325513,2130.9,2130.6,0.0011]
[1770667178842,4.69249842,2131.1,2130.6,0.0011]
[1770667179049,1.00910247,2131.0,2130.6,0.0011]
[1770667179247,1.00910247,2130.9,2130.6,0.0011]
[1770667179430,4.69249842,2131.1,2130.6,0.0011]
[1770667179630,1.00917088,2131.0,2130.6,0.0011]
[1770667179944,1.00917088,2131.0,2130.0,4.69481944]
[1770667179945,0.05631688,2130.6,2129.8,0.0011]
[1770667180146,0.05631688,2130.4,2129.8,0.0011]
[1770667180522,1.00918058,2130.3,2129.8,0.0011]
[1770667180737,0.05631688,2130.4,2129.8,0.0011]
[1770667180940,1.00918011,2130.3,2129.8,0.0011]
[1770667181255,0.05631688,2130.4,2129.8,0.0011]
[1770667181432,1.17354363,2130.3,2129.8,0.0011]
[1770667182749,1.00889014,2130.2,2129.8,0.0011]
[1770667182960,1.17354363,2130.3,2129.8,0.0011]
[1770667183148,1.06526875,2130.2,2129.8,0.0011]
[1770667183448,1.17365381,2130.1,2129.8,0.0011]
[1770667184255,1.06511733,2130.0,2129.8,0.0011]
[1770667184441,0.05631688,2130.0,2129.8,0.0011]
[1770667185533,1.17354363,2130.3,2129.8,20.66336435]
[1770667185741,1.00865891,2130.2,2129.8,20.66336435]
[1770667186063,1.00865891,2130.1,2129.8,20.66336435]
[1770667186359,4.69359991,2130.6,2129.8,20.66336435]
[1770667186526,1.00820385,2130.5,2129.8,20.66336435]
[1770667186728,1.00820385,2130.4,2129.8,20.66336435]
[1770667186950,4.74991679,2130.6,2129.8,20.66336435]
[1770667187231,1.00820279,2130.5,2129.8,20.66336435]
[1770667187428,0.05631688,2130.1,2129.8,0.06077985]
[1770667187646,0.05631688,2129.7,2129.2,0.0011]
[1770667188652,1.00810866,2129.6,2129.2,0.0011]
[1770667188960,1.68037231,2130.0,2129.2,0.0011]
[1770667189160,1.00801671,2129.9,2129.2,0.0011]
[1770667189362,1.73668919,2130.2,2129.2,0.0011]
[1770667189363,1.00801671,2129.8,2129.2,0.0011]
[1770667189527,1.17365381,2130.1,2129.2,0.0011]
[1770667189732,0.05631688,2129.9,2129.8,0.0011]
[1770667189923,1.06385462,2129.9,2129.8,0.0011]
[1770667190129,1.06385462,2129.9,2129.3,3.28]
[1770667190471,1.00753774,2129.8,2129.3,3.28]
[1770667190651,0.05631688,2129.9,2129.3,3.28]
[1770667190836,1.00723669,2129.8,2129.3,3.28]
[1770667191028,0.05631688,2129.9,2129.3,3.28]
[1770667191361,1.17357488,2130.3,2129.3,4.22712628]
[1770667191526,1.17357488,2130.3,2129.4,1.17403963]
[1770667196245,0.0012,2130.7,2129.9,12.29144203]
[1770667196428,0.0012,2131.3,2130.3,11.34431575]
[1770667196774,1.68157231,2132.2,2130.8,0.94712628]
[1770667196930,1.1725832,2132.1,2131.1,12.29144203]
[1770667197131,0.05631688,2132.9,2131.7,0.94712628]
[1770667197367,0.05631688,2133.0,2132.0,11.34431575]
[1770667197774,0.05631688,2133.7,2132.9,11.34431575]
[1770667197926,0.05631688,2133.6,2133.0,3.281]
[1770667198132,0.05631688,2133.9,2133.1,1.17200318]
[1770667198133,1.1716187,2133.8,2133.1,1.17200318]
[1770667198328,0.05631688,2133.5,2132.9,1.17211043]
[1770667198557,0.05631688,2133.7,2133.2,3.281]
[1770667198860,0.05631688,2133.4,2133.2,3.281]
[1770667199338,0.05631688,2133.7,2133.2,3.281]
[1770667199537,0.05631688,2133.3,2132.5,4.68919617]
[1770667199737,0.05631688,2133.1,2132.7,1.17221605]
[1770667199949,0.05631688,2133.0,2132.7,1.17218574]
[1770667200152,0.05631688,2133.2,2131.9,0.94712628]
[1770667200336,0.05631688,2132.0,2131.4,1.17290593]
[1770667200669,0.05631688,2131.8,2131.0,2.12027304]
[1770667200964,0.05631688,2131.8,2131.1,3.279]
[1770667201166,0.05631688,2131.6,2131.1,3.279]
[1770667201365,0.15871688,2132.7,2131.4,1.17293335]
[1770667201665,0.05631688,2131.9,2131.1,3.279]
[1770667201872,0.05631688,2131.8,2131.2,1.17304262]
[1770667202072,0.05631688,2131.8,2131.3,1.17299208]
[1770667202276,1.22892475,2132.0,2131.2,1.17304804]
[1770667202464,0.05631688,2131.6,2130.6,0.94712628]
[1770667202667,0.05631688,2131.7,2130.8,1.17326023]
[1770667202975,1.17260787,2132.0,2130.0,14.87866261]
[1770667202976,1.17260787,2132.0,2131.1,1.17309797]
[1770667204082,0.05631688,2131.7,2130.8,1.1732301]
[1770667204281,0.05631688,2131.3,2130.6,1.17337839]
[1770667204463,0.05631688,2131.3,2130.7,3.279]
[1770667205000,4.69102399,2131.8,2130.7,3.279]
[1770667205001,1.17260787,2132.0,2130.7,3.279]
[1770667205283,0.05631688,2131.5,2130.7,3.279]
[1770667205487,0.05631688,2131.3,2130.7,3.279]
[1770667206188,0.05631688,2131.5,2130.7,3.279]
[1770667206363,0.05631688,2132.0,2130.9,0.94712628]
[1770667206560,1.22864982,2132.5,2130.8,1.17326825]
[1770667206561,0.05631688,2131.5,2130.8,1.17326825]
[1770667206992,0.05631688,2130.6,2129.9,1.17375763]
[1770667207278,0.05631688,2130.2,2130.0,3.279]
[1770667207448,0.05631688,2130.4,2130.0,3.279]
[1770667207981,0.05631688,2130.2,2130.0,3.279]
[1770667208161,0.05631688,2129.7,2129.3,0.0011]
[1770667208486,0.05631688,2130.2,2129.3,0.0011]
[1770667208686,0.05631688,2129.5,2129.3,0.0011]
[1770667208854,0.05631688,2129.7,2129.3,0.0011]
[1770667209179,0.05631688,2129.6,2129.3,0.0011]
[1770667209585,0.05631688,2129.9,2129.3,0.0011]
[1770667209973,0.05631688,2130.2,2129.3,0.0011]
[1770667210294,0.05631688,2129.6,2129.3,0.0011]
[1770667210462,1.23015356,2129.8,2129.3,0.0011]
[1770667210791,1.17380579,2129.9,2129.3,0.0011]
[1770667211089,0.05631688,2129.6,2129.3,0.0011]
[1770667211291,0.05631688,2130.2,2129.3,0.0011]
[1770667211292,1.17326825,2130.8,2129.3,0.0011]
[1770667211497,0.05631688,2130.5,2129.3,0.0011]
[1770667211882,0.05631688,2130.1,2129.3,0.0011]
[1770667212394,0.05631688,2129.5,2129.3,0.0011]
[1770667212593,1.2301926,2129.7,2129.4,3.279]
[1770667212777,0.05631688,2129.7,2129.4,3.279]
[1770667213169,1.23019244,2129.7,2129.4,3.279]
[1770667213502,0.05631688,2129.7,2129.4,3.279]
[1770667213672,1.23008994,2129.9,2129.4,3.279]
[1770667213874,0.05631688,2129.9,2129.5,0.0011]
[1770667214201,1.22999427,2130.1,2129.5,0.0011]
[1770667214367,0.05631688,2129.9,2129.5,0.0011]
[1770667214576,0.05631688,2129.9,2129.5,1.1750845]
[1770667214777,0.05631688,2130.1,2129.5,1.1750845]
[1770667215077,0.05631688,2130.3,2129.5,1.1750845]
[1770667215494,0.05631688,2130.5,2129.5,1.1750845]
[1770667215815,0.05631688,2130.3,2129.5,1.1750845]
[1770667216381,0.05631688,2130.7,2129.5,1.1750845]
[1770667216382,1.23067188,2131.1,2129.6,11.13115047]
[1770667216705,1.17318183,2131.0,2129.7,1.17387425]
[1770667217013,1.23065927,2131.1,2129.7,2.12100053]
[1770667217223,0.05751688,2131.1,2129.8,0.94712628]
[1770667217439,0.05631688,2130.8,2129.8,0.94712628]
[1770667217722,0.0012,2131.1,2129.8,0.94712628]
[1770667217911,0.05631688,2130.8,2129.8,0.94712628]
[1770667218116,0.05631688,2130.6,2129.9,3.28]
[1770667218619,0.05631688,2130.6,2130.0,1.17370892]
[1770667220415,0.05631688,2130.6,2129.5,0.0011]
[1770667220416,0.05631688,2130.1,2129.5,0.0011]
[1770667220726,0.05631688,2130.1,2130.0,3.28]
[1770667220896,0.05631688,2130.2,2130.0,2.50736784]
[1770667221218,0.05631688,2130.2,2129.5,0.0011]
[1770667221219,0.05631688,2130.0,2129.8,3.28]
[1770667221397,0.05631688,2130.4,2129.9,1.17373989]
[1770667221599,0.05631688,2130.4,2129.9,1.17376293]
[1770667221795,0.05631688,2130.2,2129.8,3.28]
[1770667222501,1.22994417,2130.2,2129.8,3.28]
[1770667222706,0.05631688,2130.2,2129.8,3.28]
[1770667223018,1.22992259,2130.2,2129.8,3.28]
[1770667223211,0.05631688,2130.0,2129.8,3.28]
[1770667223418,0.05631688,2130.0,2129.5,0.0011]
[1770667223606,0.05631688,2130.0,2129.2,0.0011]
[1770667223607,0.05631688,2129.6,2129.2,0.0011]
[1770667224510,0.05631688,2129.4,2129.2,0.0011]
[1770667224712,0.05631688,2129.4,2129.0,0.0011]
[1770667224890,0.05631688,2129.2,2129.0,0.0011]
[1770667225294,0.05631688,2129.2,2128.5,1.17453535]
[1770667225295,0.05631688,2129.0,2128.5,1.17453535]
[1770667225518,0.05631688,2128.8,2128.4,1.17568454]
[1770667225720,0.05631688,2129.0,2128.5,1.17452874]
[1770667226022,0.05631688,2128.8,2128.4,1.17565015]
[1770667226319,0.05631688,2129.4,2128.5,1.17449723]
[1770667226520,0.05631688,2129.0,2128.4,0.0011]
[1770667226697,1.23056739,2129.1,2128.4,0.0011]
[1770667226899,0.05631688,2128.9,2128.4,0.0011]
[1770667227103,0.05631688,2128.7,2128.4,0.0011]
[1770667227403,0.05631688,2128.7,2128.3,0.0011]
[1770667227603,0.05631688,2128.9,2128.3,0.0011]
[1770667227804,0.05631688,2129.1,2128.3,0.0011]
[1770667228202,1.17413013,2129.3,2128.3,0.0011]
[1770667228514,1.46419595,2130.9,2128.3,0.0011]
[1770667228515,0.0012,2130.0,2129.3,1.17409477]
[1770667228716,0.05631688,2130.7,2129.4,3.281]
[1770667228925,0.0012,2131.1,2129.9,0.96052645]
[1770667229525,0.05631688,2130.6,2130.0,3.281]
[1770667229895,0.05631688,2130.8,2130.0,3.281]
[1770667230597,0.05631688,2130.4,2129.5,1.1739845]
[1770667230800,0.05631688,2130.2,2129.6,3.281]
[1770667230998,0.05631688,2130.0,2129.6,3.281]
[1770667232807,0.05631688,2130.6,2129.7,1.17387425]
[1770667233011,0.05631688,2130.4,2129.7,1.17387425]
[1770667233399,0.05631688,2130.2,2129.7,1.17387425]
[1770667233603,0.05631688,2130.0,2129.6,4.45491985]
[1770667233929,0.05631688,2129.8,2129.6,3.281]
[1770667234518,0.05631688,2129.8,2129.3,1.17405388]
[1770667234911,0.05631688,2130.6,2129.3,0.96052645]
[1770667235925,1.22950871,2131.0,2129.3,0.96052645]
[1770667236131,0.05631688,2130.8,2129.3,0.96052645]
[1770667237028,0.05631688,2130.8,2129.4,2.13456608]
[1770667237412,1.22959181,2130.8,2129.4,2.13456608]
[1770667238235,0.05631688,2130.8,2129.5,0.0011]
[1770667238436,0.05751688,2130.4,2129.5,0.0011]
[1770667238642,0.05631688,2130.0,2129.5,0.0011]
[1770667238810,0.05751688,2130.4,2129.5,0.0011]
[1770667239007,0.05631688,2130.2,2129.5,0.0011]
[1770667241326,0.05631688,2130.0,2129.5,0.0011]
[1770667242513,0.05631688,2130.0,2129.3,0.0011]
[1770667242514,0.05631688,2129.6,2129.3,0.0011]
[1770667242715,0.05631688,2129.4,2129.3,0.0011]
[1770667242920,0.05631688,2129.1,2128.5,3.281]
[1770667243228,1.23063295,2128.9,2128.4,0.0011]
[1770667243536,0.05631688,2128.7,2128.4,0.0011]
[1770667244339,1.23063295,2128.9,2128.4,0.0011]
[1770667244549,1.17409477,2129.3,2128.5,1.17453581]
[1770667244714,0.05631688,2129.0,2128.5,1.17453581]
[1770667245046,0.05631688,2129.0,2128.4,1.1756513]
[1770667245244,0.05631688,2129.0,2128.4,0.0011]
[1770667245745,0.05631688,2128.8,2128.4,0.0011]
[1770667246044,0.05631688,2129.2,2128.4,0.0011]
[1770667247430,1.23048353,2129.2,2128.4,0.0011]
[1770667247629,1.23047496,2129.2,2128.4,0.0011]
[1770667248141,0.05631688,2129.0,2128.4,0.0011]
[1770667249138,0.05631688,2128.8,2128.4,0.0011]
[1770667249314,1.23073856,2128.8,2128.4,0.0011]
[1770667249514,0.05631688,2129.0,2128.4,0.0011]
[1770667249738,4.69639348,2129.3,2128.4,0.0011]
[1770667249947,0.05631688,2129.2,2128.4,0.0011]
[1770667250510,1.23036596,2129.4,2128.6,0.0011]
[1770667250745,1.17403914,2129.5,2128.6,0.0011]
[1770667250922,0.05631688,2129.4,2128.6,0.0011]
[1770667251343,4.51126186,2129.6,2128.6,0.0011]
[1770667251521,0.05631688,2129.5,2128.6,0.0011]
[1770667251712,0.05631688,2129.3,2128.6,0.0011]
[1770667251915,0.05631688,2128.9,2128.6,0.0011]
[1770667252116,0.05631688,2129.1,2128.6,0.0011]
[1770667252342,0.05631688,2128.9,2128.6,0.0011]
[1770667253623,1.23046535,2129.3,2128.6,0.0011]
[1770667253843,0.05631688,2129.1,2128.6,0.0011]
[1770667254240,0.05631688,2129.3,2128.6,0.0011]
[1770667254423,1.23035518,2129.5,2128.6,0.0011]
[1770667255554,0.05631688,2129.5,2128.6,0.0011]
[1770667255732,0.05631688,2129.3,2128.6,0.0011]
[1770667256045,0.05631688,2129.1,2128.6,0.0011]
[1770667256254,0.05631688,2128.9,2128.6,0.0011]
[1770667258254,0.05631688,2129.6,2128.6,0.0011]
[1770667259223,0.05631688,2129.6,2128.7,3.282]
[1770667259553,0.05631688,2129.4,2128.7,3.282]
[1770667259757,0.05631688,2129.0,2128.6,0.0011]
[1770667260125,1.17431537,2128.9,2128.6,0.0011]
[1770667260323,0.05631688,2129.0,2128.6,0.0011]
[1770667260525,1.2305783,2129.0,2128.6,0.0011]
[1770667260727,1.23057903,2129.0,2128.6,0.0011]
[1770667261452,1.23049177,2129.2,2128.6,0.0011]
[1770667261756,0.05631688,2129.0,2128.6,0.0011]
[1770667262250,0.05631688,2129.2,2128.6,0.0011]
[1770667262449,1.23046953,2129.2,2128.6,0.0011]
[1770667262665,0.05631688,2128.8,2128.6,0.0011]
[1770667262818,0.96325936,2128.7,2127.9,0.1411771]
[1770667263023,0.05631688,2128.8,2126.6,9.81112744]
[1770667263024,0.2439,2127.3,2127.0,1.17534004]
[1770667263258,0.05631688,2127.9,2126.9,1.17539001]
[1770667263452,0.05631688,2127.5,2127.0,1.17536191]
[1770667263758,0.05631688,2127.1,2126.2,4.70308565]
[1770667263960,0.05631688,2126.4,2125.6,4.70438304]
[1770667264260,0.05631688,2127.2,2125.7,0.90399294]
[1770667264419,0.05631688,2126.6,2125.6,4.70438304]
[1770667264833,0.05631688,2126.6,2125.6,1.1761385]
[1770667264834,0.05631688,2126.1,2125.6,1.1761385]
[1770667265040,0.05631688,2126.4,2125.5,4.4581622]
[1770667265251,0.05631688,2126.7,2125.5,4.4581622]
[1770667265561,0.05631688,2126.8,2125.5,5.36215514]
[1770667265879,0.05631688,2126.6,2125.5,5.36215514]
[1770667266056,0.05631688,2126.1,2125.5,4.4581622]
[1770667266266,1.23204154,2126.4,2125.5,4.4581622]
[1770667266440,0.05631688,2126.2,2125.5,4.4581622]
[1770667266836,0.05631688,2126.2,2125.5,4.45818744]
[1770667267260,0.05631688,2126.0,2125.5,4.45818744]
[1770667267445,0.05631688,2126.0,2125.5,4.45819245]
[1770667267963,0.05631688,2126.2,2125.4,1.17620636]
[1770667268271,5.94205405,2128.2,2125.1,4.70565675]
[1770667268272,5.7212599,2126.9,2125.1,2.08040816]
[1770667268429,1.01957624,2126.7,2125.1,1.17641522]
[1770667268629,1.01957624,2126.3,2125.0,1.17643044]
[1770667269133,0.05631688,2126.3,2125.1,0.90399294]
[1770667269336,4.75800054,2126.9,2125.2,0.90399294]
[1770667269648,4.75800054,2126.9,2125.0,1.17643044]
[1770667269649,1.01957624,2126.7,2125.0,1.17643044]
[1770667269853,0.05631688,2126.5,2125.0,1.17643044]
[1770667270285,1.17560654,2126.6,2125.2,0.90399294]
[1770667270877,4.70190956,2126.8,2125.2,0.90399294]
[1770667271369,1.23168124,2127.0,2125.4,0.90399294]
[1770667272173,1.23168124,2127.0,2125.5,1.17619383]
[1770667272558,0.05631688,2126.8,2125.5,1.17619383]
[1770667272757,1.23168124,2127.0,2125.5,1.17619383]
[1770667273073,0.05631688,2126.6,2125.5,1.17619383]
[1770667274457,1.17564072,2126.5,2125.1,4.70522934]
[1770667274970,1.23192515,2126.6,2125.1,4.70522934]